Workbook

Sheet Menu
E26: Empresa: | G26: Empresa ABCDE | L26: Segmento: | N26: Segmento 1

Sheet 1ºP
B10: Empresa: | C10: =Menu!G26 -> Empresa ABCDE | H10: Segmento: | J10: =Menu!N26 -> Segmento 1 | N10: Data: | O10: =TODAY() -> 2024-01-26
H12: Master Card | L12: Visa | O12: Elo | R12: Cielo
B15: Verifique as condições financeiras da sua credenciadora. Essas informações podem ser consultadas nas faturas, maquininhas ou no contrato.
B17: =UPPER('1ºP'!H12) -> MASTER CARD | L17: =UPPER('1ºP'!L12) -> VISA
B19: % | C19: DESCRIÇÃO | L19: % | M19: DESCRIÇÃO
B21: =B23+B27+B31+B35 -> 74.00% | C21: % de Vendas em Relação as Vendas Totais da Empresa | L21: =IFERROR(L23+L27+L31+L35,0) -> 74.00% | M21: % de Vendas em Relação as Vendas Totais da Empresa
B23: 60.00% | C23: % de Vendas DÉBITO sobre Vendas Totais | L23: =IF($L$25=0," ",'1ºP'!B23) -> 60.00% | M23: % de Vendas DÉBITO sobre Vendas Totais
B25: 5.00% | C25: Taxa de Administração para o Cartão de DÉBITO | L25: 4.00% | M25: Taxa de Administração para o Cartão de DÉBITO
B27: 3.00% | C27: % de Vendas CRÉDITO A VISTA (30 dias) sobre as Vendas Totais | L27: =IF($L$25=0," ",'1ºP'!B27) -> 3.00% | M27: % de Vendas CRÉDITO A VISTA (30 dias) sobre as Vendas Totais
B29: 2.00% | C29: Taxa de Administração para o Cartão de CRÉDITO (30 dias) | L29: 3.00% | M29: Taxa de Administração para o Cartão de CRÉDITO (30 dias)
B31: 6.00% | C31: % de Vendas Cartão de CRÉDITO PARCELADO sobre as Vendas com Cartão | L31: =IF($L$25=0," ",'1ºP'!B31) -> 6.00% | M31: % de Vendas Cartão de CRÉDITO PARCELADO sobre as Vendas com Cartão
B33: 5.00% | C33: Taxa de Administração para o Cartão de CRÉDITO PARCELADO (até 12x) | L33: 4.00% | M33: Taxa de Administração para o Cartão de CRÉDITO PARCELADO (até 12x)
B35: 5.00% | C35: % de Vendas CREDIÁRIO sobre Vendas com Cartão | L35: =IF($L$25=0," ",'1ºP'!B35) -> 5.00% | M35: % de Vendas CREDIÁRIO sobre Vendas com Cartão
B37: 6.00% | C37: Taxa de Administração para a Modalidade CREDIÁRIO | L37: 8.00% | M37: Taxa de Administração para a Modalidade CREDIÁRIO
B39: ANTECIPAÇÃO DE RECEBÍVEIS | L39: ANTECIPAÇÃO DE RECEBÍVEIS
B40: 50.00% | C40: % de Vendas ANTECIPADO (Recebíveis Com Cartão) | H40: R$ | I40: =(('2ºP'!J27)*('1ºP'!B27+'1ºP'!B31))*'1ºP'!B40 -> 1,170.00 | L40: =IF($L$25=0," ",'1ºP'!B40) -> 50.00% | M40: % de Vendas ANTECIPADO (Recebíveis Com Cartão) | R40: R$ | S40: =IF('1ºP'!L25=0," ",'1ºP'!$I$40) -> 1,170.00
B42: 5.00% | C42: Taxa de Antecipação de Recebíveis | L42: 7.00% | M42: Taxa de Antecipação de Recebíveis
B44: 10 | C44: Prazo Médio de Antecipação | L44: 15 | M44: Prazo Médio de Antecipação
B46: ='1ºP'!B17 -> MASTER CARD | L46: =L17 -> VISA
B47: Aluguel das Máquinas | L47: Aluguel das Máquinas
B48: POS (R$) | E48: PDV(R$) | H48: POO(R$) | L48: POS (R$) | O48: PDV(R$) | R48: POO(R$)
B49: 50.00
B50: Quantidade de Máquinas | L50: Quantidade de Máquinas
B51: POS (Qtde) | E51: PDV (Qtde.) | H51: POO(Qtde.) | L51: POS (Qtde) | O51: PDV (Qtde.) | R51: POO(Qtde.)
B53: Custo Mensal | L53: Custo Mensal
B54: POS (R$) | E54: PDV (R$) | H54: POO(R$) | L54: POS (R$) | O54: PDV (R$) | R54: POO(R$)
B55: =B49*B52 -> 0 | E55: =E49*E52 -> 0 | H55: =H49*H52 -> 0 | L55: =L49*L52 -> 0 | O55: =O49*O52 -> 0 | R55: =R49*R52 -> 0
B57: =UPPER('1ºP'!O12) -> ELO | L57: =UPPER('1ºP'!R12) -> CIELO
B59: % | C59: DESCRIÇÃO | L59: % | M59: DESCRIÇÃO
B61: =IFERROR(B63+B67+B71+B75,0) -> 0.00% | C61: % de Vendas em Relação as Vendas Totais da Empresa | L61: =IFERROR(L63+L67+L71+L75,0) -> 0.00% | M61: % de Vendas em Relação as Vendas Totais da Empresa
B63: =IF($B$65=0," ",'1ºP'!$B$23) ->  | C63: % de Vendas DÉBITO sobre Vendas Totais | L63: =IF(L65=0," ",'1ºP'!$B$23) ->  | M63: % de Vendas DÉBITO sobre Vendas Totais
C65: Taxa de Administração para o Cartão de DÉBITO | M65: Taxa de Administração para o Cartão de DÉBITO
B67: =IF($B$65=0," ",'1ºP'!$B$27) ->  | C67: % de Vendas CRÉDITO A VISTA (30 dias) sobre as Vendas Totais | L67: =IF($L$65=0," ",'1ºP'!$B$27) ->  | M67: % de Vendas CRÉDITO A VISTA (30 dias) sobre as Vendas Totais
C69: Taxa de Administração para o Cartão de CRÉDITO (30 dias) | M69: Taxa de Administração para o Cartão de CRÉDITO (30 dias)
B71: =IF($B$65=0," ",'1ºP'!$B$31) ->  | C71: % de Vendas Cartão de CRÉDITO PARCELADO sobre as Vendas com Cartão | L71: =IF($L$65=0," ",'1ºP'!$B$31) ->  | M71: % de Vendas Cartão de CRÉDITO PARCELADO sobre as Vendas com Cartão
C73: Taxa de Administração para o Cartão de CRÉDITO PARCELADO (até 12x) | M73: Taxa de Administração para o Cartão de CRÉDITO PARCELADO (até 12x)
B75: =IF($B$65=0," ",'1ºP'!B35) ->  | C75: % de Vendas CREDIÁRIO sobre Vendas com Cartão | H75: R$ | I75: =IF('1ºP'!B65=0," ",'1ºP'!$I$40) ->  | L75: =IF(L65=0," ",'1ºP'!B35) ->  | M75: % de Vendas CREDIÁRIO sobre Vendas com Cartão | R75: R$ | S75: =IF('1ºP'!L65=0," ",'1ºP'!$I$40) -> 
C77: Taxa de Administração para a Modalidade CREDIÁRIO | M77: Taxa de Administração para a Modalidade CREDIÁRIO
B79: ANTECIPAÇÃO DE RECEBÍVEIS | L79: ANTECIPAÇÃO DE RECEBÍVEIS
B80: =IF($B$65=0," ",'1ºP'!B40) ->  | C80: % de Vendas ANTECIPADO (Recebíveis Com Cartão) | L80: =IF($L$65=0," ",'1ºP'!B40) ->  | M80: % de Vendas ANTECIPADO (Recebíveis Com Cartão)
C82: Taxa de Antecipação de Recebíveis | M82: Taxa de Antecipação de Recebíveis
C84: Prazo Médio de Antecipação | M84: Prazo Médio de Antecipação
B86: =B57 -> ELO | L86: =L57 -> CIELO
B87: Aluguel das Máquinas | L87: Aluguel das Máquinas
B88: POS (R$) | E88: PDV(R$) | H88: POO(R$) | L88: POS (R$) | O88: PDV(R$) | R88: POO(R$)
B90: Quantidade de Máquinas | L90: Quantidade de Máquinas
B91: POS (Qtde) | E91: PDV (Qtde.) | H91: POO(Qtde.) | L91: POS (Qtde) | O91: PDV (Qtde.) | R91: POO(Qtde.)
B93: Custo Mensal | L93: Custo Mensal
B94: POS (R$) | E94: PDV (R$) | H94: POO(R$) | L94: POS (R$) | O94: PDV (R$) | R94: POO(R$)
B95: =B89*B92 -> 0 | E95: =E89*E92 -> 0 | H95: =H89*H92 -> 0 | L95: =L89*L92 -> 0 | O95: =O89*O92 -> 0 | R95: =R89*R92 -> 0

Sheet 2ºP
B10: Empresa: | C10: =Menu!G26 -> Empresa ABCDE | H10: Segmento: | J10: =Menu!N26 -> Segmento 1 | M10: Data: | N10: =TODAY() -> 2024-01-26
B12: Lançamento de Receitas e Despesas
B14: RECEITA MÉDIA ATUAL (MENSAL) | J14: 20,000.00 | L14: =IFERROR('2ºP'!J14/'2ºP'!J14,0) -> 100.00%
B16: DESPESAS TOTAIS (EXCETO IMPOSTOS) | J16: 5,000.00 | L16: =IFERROR('2ºP'!J16/'2ºP'!J14,0) -> 25.00%
B18: IMPOSTOS (%) | J18: ='2ºP'!J14*'2ºP'!L18 -> 2,000.00 | L18: 10.00%
B20: SOMATÓRIO DAS DESPESAS | J20: ='2ºP'!J16+'2ºP'!J18 -> 7,000.00 | L20: =IFERROR('2ºP'!J20/'2ºP'!J14,0) -> 35.00%
B22: LUCRO MENSAL (atual) | J22: ='2ºP'!J14-'2ºP'!J20 -> 13,000.00 | L22: =IFERROR('2ºP'!J22/'2ºP'!J14,0) -> 65.00%
B24: INCREMENTO ESPERADO (%) | J24: 30.00%
B25: OBS: Apenas para empresas que ainda não aceitam cartões.
B27: RECEITA (APÓS INCREMENTO ESPERADO) | J27: ='2ºP'!J14+('2ºP'!J14*J24) -> 26,000.00 | L27: =IFERROR('2ºP'!J27/'2ºP'!J27,0) -> 100.00%
B29: ='2ºP'!B16 -> DESPESAS TOTAIS (EXCETO IMPOSTOS) | J29: ='2ºP'!J16 -> 5,000.00 | L29: =IFERROR('2ºP'!J29/'2ºP'!J27,0) -> 19.23%
B31: IMPOSTOS (%) | J31: =IFERROR(J27*'2ºP'!L31,0) -> 2,600.00 | L31: =IF(L18="","",'2ºP'!L18) -> 10.00%
B33: ='2ºP'!B20 -> SOMATÓRIO DAS DESPESAS | J33: =IFERROR(J29+J31,0) -> 7,600.00 | L33: =IFERROR('2ºP'!J33/'2ºP'!J27,0) -> 29.23%
B35: OUTRAS DESPESAS APÓS IMPLEMENTAÇÃO DO CARTÃO | J35: 2,000.00 | L35: =IFERROR('2ºP'!J35/'2ºP'!J27,0) -> 7.69%
B36: OBS: Apenas para empresas que ainda não aceitam cartões.
B38: DESPESAS C/ APENAS UM CARTÃO | J38: =Resultado!E27 -> 852.72 | L38: ='2ºP'!J38/'2ºP'!J29 -> 17.05%
B40: LUCRO MENSAL C/ INCREMENTO | J40: ='2ºP'!$J$27-'2ºP'!$J$33-'2ºP'!$J$35-J38 -> 15,547.28 | L40: ='2ºP'!J40/'2ºP'!J27 -> 59.80%
B42: DESPESAS C/TODOS CARTÕES | J42: =Resultado!L27 -> 1,823.19 | L42: ='2ºP'!J42/'2ºP'!$J$29 -> 36.46%
B44: LUCRO MENSAL C/ INCREMENTO | J44: ='2ºP'!$J$27-'2ºP'!$J$33-'2ºP'!$J$35-J42 -> 14,576.81 | L44: ='2ºP'!J44/'2ºP'!$J$27 -> 56.06%
B47: MELHOR CONDIÇÃO (credenciadora): TAXAS
B48: % | C48: DESCRIÇÃO | K48: CREDENCIADORA
B49: =IF(MIN('1ºP'!B25,'1ºP'!L25,'1ºP'!B65,'1ºP'!L65)=0,"N/A",MIN('1ºP'!B25,'1ºP'!L25,'1ºP'!B65,'1ºP'!L65)) -> 4.00% | C49: Taxa de Administração para o Cartão de DÉBITO | K49: =IF('2ºP'!B49='1ºP'!B25,'1ºP'!B17,IF('2ºP'!B49='1ºP'!L25,'1ºP'!L17,IF('2ºP'!B49='1ºP'!B65,'1ºP'!B57,IF('2ºP'!B49='1ºP'!L65,'1ºP'!L57," ")))) -> VISA
B50: =IF(MIN('1ºP'!B29,'1ºP'!L29,'1ºP'!B69,'1ºP'!L69)=0,"N/A",MIN('1ºP'!B29,'1ºP'!L29,'1ºP'!B69,'1ºP'!L69)) -> 2.00% | C50: Taxa de Administração para o Cartão de CRÉDITO (30 dias) | K50: =IF('2ºP'!B50='1ºP'!B29,'1ºP'!B17,IF('2ºP'!B50='1ºP'!L29,'1ºP'!L17,IF('2ºP'!B50='1ºP'!B69,'1ºP'!B57,IF('2ºP'!B50='1ºP'!L69,'1ºP'!L57," ")))) -> MASTER CARD
B51: =IF(MIN('1ºP'!B33,'1ºP'!L33,'1ºP'!B73,'1ºP'!L73)=0,"N/A",MIN('1ºP'!B33,'1ºP'!L33,'1ºP'!B73,'1ºP'!L73)) -> 4.00% | C51: Taxa de Administração para o Cartão de CRÉDITO PARCELADO (até 12x) | K51: =IF('2ºP'!B51='1ºP'!B33,'1ºP'!B17,IF('2ºP'!B51='1ºP'!L33,'1ºP'!L17,IF('2ºP'!B51='1ºP'!B73,'1ºP'!B57,IF('2ºP'!B51='1ºP'!L73,'1ºP'!L57," ")))) -> VISA
B52: =IF(MIN('1ºP'!B37,'1ºP'!L37,'1ºP'!B77,'1ºP'!L77)=0,"N/A",MIN('1ºP'!B37,'1ºP'!L37,'1ºP'!B77,'1ºP'!L77)) -> 6.00% | C52: Taxa de Administração para a Modalidade CREDIÁRIO | K52: =IF('2ºP'!B52='1ºP'!B37,'1ºP'!B17,IF('2ºP'!B52='1ºP'!L37,'1ºP'!L17,IF('2ºP'!B52='1ºP'!B77,'1ºP'!B57,IF('2ºP'!B52='1ºP'!L77,'1ºP'!L57," ")))) -> MASTER CARD
B53: =IF(MIN('1ºP'!B42,'1ºP'!L42,'1ºP'!B82,'1ºP'!L82)=0,"N/A",MIN('1ºP'!B42,'1ºP'!L42,'1ºP'!B82,'1ºP'!L82)) -> 5.00% | C53: Taxa de Antecipação de Recebíveis | K53: =IF('2ºP'!B53='1ºP'!B42,'1ºP'!B17,IF('2ºP'!B53='1ºP'!L42,'1ºP'!L17,IF('2ºP'!B53='1ºP'!B82,'1ºP'!B57,IF('2ºP'!B53='1ºP'!L82,'1ºP'!L57," ")))) -> MASTER CARD
B55: MELHOR CONDIÇÃO (credenciadora): ALUGUEL DAS MÁQUINAS
B56: POS (R$) | F56: PDV(R$) | J56: POO(R$)
B57: =MIN('1ºP'!$B$55,'1ºP'!$L$55,'1ºP'!$B$95,'1ºP'!$L$95) -> 0 | F57: =MIN('1ºP'!$E$55,'1ºP'!$O$55,'1ºP'!$E$95,'1ºP'!$O$95) -> 0 | J57: =MIN('1ºP'!$H$55,'1ºP'!$R$55,'1ºP'!$H$95,'1ºP'!$R$95) -> 0
B58: =IF($B$57='1ºP'!$B$49,'1ºP'!$B$17,IF($B$57='1ºP'!$L$49,'1ºP'!$L$17,IF($B$57='1ºP'!$B$89,'1ºP'!$B$57,IF($B$57='1ºP'!$L$89,'1ºP'!$L$57," ")))) -> VISA | F58: =IF($F$57='1ºP'!$E$89,'1ºP'!$B$57,IF($F$57='1ºP'!$O$89,'1ºP'!$L$57,IF($F$57='1ºP'!$E$49,'1ºP'!$B$17,IF($F$57='1ºP'!$O$49,'1ºP'!$L$17," ")))) -> ELO | J58: =IF($J$57='1ºP'!$H$89,'1ºP'!$B$86,IF($J$57='1ºP'!$R$89,'1ºP'!$L$86,IF($J$57='1ºP'!$H$49,'1ºP'!$B$17,IF($J$57='1ºP'!$R$49,'1ºP'!$L$17," ")))) -> ELO

Sheet Resultado
B10: Empresa: | C10: =Menu!G26 -> Empresa ABCDE | I10: Segmento: | J10: =Menu!N26 -> Segmento 1 | N10: Data: | O10: =TODAY() -> 2024-01-26
B12: ANÁLISE FINAL
B14: MELHOR CONDIÇÃO: | I14: UTILIZANDO TODOS OS CARTÕES:
B15: =IF(Resultado!E19=Resultado!E46,B42,)&IF(Resultado!E19=Resultado!L46,Resultado!I42,)&IF(Resultado!E19=Resultado!E71,B67,)&IF(Resultado!E19=Resultado!L71,Resultado!I67,) -> VISA | I15: =UPPER(CONCATENATE(Resultado!B42&" + ",I42&" + ",Resultado!B67&" + ",I67)) -> MASTER CARD + VISA + ELO + CIELO
B16: FLUXO DE CAIXA | I16: FLUXO DE CAIXA
B17: Situação COM a Utilização do Cartão de Pagamento | I17: Situação COM a Utilização dos Cartões de Pagamento
C18: Faturamento Mensal | E18: ='2ºP'!J27 -> 26,000.00 | G18: =IF(Resultado!E18=0,0,Resultado!E18/Resultado!E18) -> 100.00% | J18: Faturamento Mensal | L18: =Resultado!E18 -> 26,000.00 | N18: =IF(Resultado!L18=0,0,Resultado!L18/Resultado!L18) -> 100.00%
C19: Despesas Totais | E19: =IF(MIN(Resultado!$C$93:$C$96)=0,LARGE(Resultado!$C$93:$C$96,COUNTIF(Resultado!$C$93:$C$96,"<>0")),MIN(Resultado!$C$93:$C$96)) -> 10,452.72 | G19: =IF(Resultado!E19=0,0,Resultado!E19/Resultado!E18) -> 40.20% | J19: Despesas Totais | L19: =Custos!P7+Custos!P12+Custos!P17+Custos!P22 -> 1,823.19 | N19: =IF(Resultado!L19=0,0,Resultado!L19/Resultado!L18) -> 7.01%
C20: Lucro Operacional | E20: =Resultado!E18-E19 -> 15,547.28 | G20: =IF(Resultado!E20=0,0,Resultado!E20/Resultado!E18) -> 59.80% | J20: Lucro Operacional | L20: =L18-L19 -> 24,176.81 | N20: =IF(Resultado!L20=0,0,Resultado!L20/Resultado!L18) -> 92.99%
B22: IMPACTO COM A ADOÇÃO DO CARTÃO DE PAGAMENTO | I22: IMPACTO COM A ADOÇÃO DOS CARTÕES DE PAGAMENTO
B24: O lucro da empresa passará de | E24: ='2ºP'!J22 -> 13,000.00 | F24: reais | I24: O lucro da empresa passará de | L24: ='2ºP'!J22 -> 13,000.00 | M24: reais
B25: para | C25: =Resultado!E20 -> 15,547.28 | D25: =IF(Resultado!F25>0,"com aumento de","com uma queda de") -> com aumento de | F25: =Resultado!C25-Resultado!E24 -> 2,547.28 | I25: para | J25: =Resultado!L20 -> 24,176.81 | K25: =IF(Resultado!M25>0,"com aumento de","com uma queda de") -> com aumento de | M25: =Resultado!J25-Resultado!L24 -> 11,176.81
B27: A despesa com cartão será de | E27: =VLOOKUP(Resultado!B15,Resultado!B93:F96,3,0) -> 852.72 | F27: c/aumento | I27: A despesa com cartão será de | L27: =D97 -> 1,823.19 | M27: c/aumento
B28: de | C28: =(Resultado!E19/'2ºP'!J33)-1 -> 37.54% | D28: nas despesas totais, representando | I28: de | J28: =(Resultado!L19/'2ºP'!J33)-1 -> -76.01% | K28: nas despesas totais, representando
B29: =Resultado!E27/Resultado!E18 -> 3.3% | C29: do faturamento bruto. | I29: =Resultado!L27/Resultado!L18 -> 7.0% | J29: do faturamento bruto.
B31: A despesa de administração representará | F31: =VLOOKUP(Resultado!B15,Resultado!B93:G96,4,0) -> 813.80 | G31: reais | I31: A despesa de administração representará | M31: =Resultado!E97 -> 1,765.40 | N31: reais
B32: ou | C32: =Resultado!F31/Resultado!E18 -> 3.1% | D32: do faturamento bruto. | I32: ou | J32: =Resultado!M31/Resultado!L18 -> 6.8% | K32: do faturamento bruto.
B34: A despesa fixa com cartão representará | F34: =VLOOKUP(Resultado!B15,Resultado!B93:F96,5,0) -> 0 | G34: reais | I34: A despesa fixa com cartão representará | M34: =Resultado!F97 -> 0 | N34: reais
B35: ou | C35: =Resultado!F34/Resultado!E18 -> 0.0% | D35: do faturamento bruto. | I35: ou | J35: =Resultado!M34/Resultado!L18 -> 0.0% | K35: do faturamento bruto.
B37: O custo com antecip. de recebíveis será | F37: =VLOOKUP(Resultado!$B$15,Resultado!$B$93:$G$96,6,0) -> 38.92 | G37: reais | I37: O custo com antecip. de recebíveis será | M37: =Resultado!G97 -> 57.79 | N37: reais
B38: ou | C38: =Resultado!F37/Resultado!$E$18 -> 0.1% | D38: do faturamento bruto. | I38: ou | J38: =Resultado!M37/Resultado!$L$18 -> 0.2% | K38: do faturamento bruto.
B40: Confira o impacto financeiro separado por credenciadora
B42: ='1ºP'!B17 -> MASTER CARD | I42: ='1ºP'!L17 -> VISA
B43: FLUXO DE CAIXA | I43: FLUXO DE CAIXA
B44: Situação COM a Utilização dos Cartões de Pagamento | I44: Situação COM a Utilização dos Cartões de Pagamento
C45: Faturamento Mensal | E45: =IF('1ºP'!B21=0%,0,Resultado!L18) -> 26,000.00 | G45: =IF(Resultado!E45=0,0,Resultado!E45/Resultado!E45) -> 100.00% | J45: Faturamento Mensal | L45: =IF('1ºP'!L21=0%,0,Resultado!L18) -> 26,000.00 | N45: =IF(Resultado!L45=0,0,Resultado!L45/Resultado!L45) -> 100.00%
C46: Despesas Totais | E46: =('2ºP'!J33)+Custos!P7+'2ºP'!J35 -> 10,570.47 | G46: =IF(Resultado!E46=0,0,Resultado!E46/Resultado!E45) -> 40.66% | J46: Despesas Totais | L46: =IF(Resultado!L45=0,0,(('2ºP'!J33)+Custos!P12+'2ºP'!J35)) -> 10,452.72 | N46: =IF(Resultado!L46=0,0,Resultado!L46/Resultado!L45) -> 40.20%
C47: Lucro Operacional | E47: =E45-E46 -> 15,429.53 | G47: =IF(Resultado!E47=0,0,Resultado!E47/Resultado!E45) -> 59.34% | J47: Lucro Operacional | L47: =Resultado!L45-Resultado!L46 -> 15,547.28 | N47: =IF(Resultado!L47=0,0,Resultado!L47/Resultado!L45) -> 59.80%
B49: IMPACTO COM A ADOÇÃO DO CARTÃO DE PAGAMENTO | I49: IMPACTO COM A ADOÇÃO DO CARTÃO DE PAGAMENTO
B51: O lucro da empresa passará de | E51: ='2ºP'!J22 -> 13,000.00 | F51: reais | I51: O lucro da empresa passará de | L51: ='2ºP'!J22 -> 13,000.00 | M51: reais
B52: para | C52: =Resultado!E47 -> 15,429.53 | D52: =IF(Resultado!F52>0,"com aumento de","com uma queda de") -> com aumento de | F52: =Resultado!C52-Resultado!E51 -> 2,429.53 | I52: para | J52: =Resultado!L47 -> 15,547.28 | K52: =IF(Resultado!M52>0,"com aumento de","com uma queda de") -> com aumento de | M52: =Resultado!J52-Resultado!L51 -> 2,547.28
B54: A despesa com cartão será de | E54: =Custos!P7 -> 970.47 | F54: c/aumento | I54: A despesa com cartão será de | L54: =Custos!P12 -> 852.72 | M54: c/aumento
B55: de | C55: =IF(Resultado!E47=0,0,((Resultado!E46/'2ºP'!J33)-1)) -> 39.09% | D55: nas despesas totais, representando | I55: de | J55: =(Resultado!L46/'2ºP'!J33)-1 -> 37.54% | K55: nas despesas totais, representando
B56: =IF(Resultado!E47=0,0,Resultado!E54/Resultado!E45) -> 3.7% | C56: do faturamento bruto. | I56: =IF(Resultado!L47=0,0,Resultado!L54/Resultado!L45) -> 3.3% | J56: do faturamento bruto.
B58: A despesa de administração representará | F58: =Custos!P6 -> 951.60 | G58: reais | I58: A despesa de administração representará | M58: =Custos!P11 -> 813.80 | N58: reais
B59: ou | C59: =IF(Resultado!E47=0,0,Resultado!F58/Resultado!E45) -> 3.7% | D59: do faturamento bruto. | I59: ou | J59: =IF(Resultado!L47=0,0,Resultado!M58/Resultado!L45) -> 3.1% | K59: do faturamento bruto.
B61: A despesa fixa com cartão representará | F61: =Custos!O6 -> 0 | G61: reais | I61: A despesa fixa com cartão representará | M61: =Custos!O11 -> 0 | N61: reais
B62: ou | C62: =IF(Resultado!$E$47=0,0,Resultado!F61/Resultado!$E$45) -> 0.0% | D62: do faturamento bruto. | I62: ou | J62: =IF(Resultado!$L$47=0,0,Resultado!M61/Resultado!$L$45) -> 0.0% | K62: do faturamento bruto.
B64: O custo com antecip. de recebíveis será | F64: =Custos!M7 -> 18.87 | G64: reais | I64: O custo com antecip. de recebíveis será | M64: =Custos!M12 -> 38.92 | N64: reais
B65: ou | C65: =IF(Resultado!$E$47=0,0,Resultado!F64/Resultado!$E$45) -> 0.1% | D65: do faturamento bruto. | I65: ou | J65: =IF(Resultado!$L$47=0,0,Resultado!M64/Resultado!$L$45) -> 0.1% | K65: do faturamento bruto.
B67: ='1ºP'!B57 -> ELO | I67: ='1ºP'!L57 -> CIELO
B68: FLUXO DE CAIXA | I68: FLUXO DE CAIXA
B69: Situação COM a Utilização dos Cartões de Pagamento | I69: Situação COM a Utilização dos Cartões de Pagamento
C70: Faturamento Mensal | E70: =IF('1ºP'!B61=0%,0,Resultado!L18) -> 0 | G70: =IF(Resultado!E70=0,0,Resultado!E70/Resultado!E70) -> 0.00% | J70: Faturamento Mensal | L70: =IF('1ºP'!L61=0,0,Resultado!L18) -> 0 | N70: =IF(Resultado!L70=0,0,Resultado!L70/Resultado!L70) -> 0.00%
C71: Despesas Totais | E71: =IF(E70=0,0,(('2ºP'!J33)+Custos!P17+'2ºP'!J35)) -> 0 | G71: =IF(Resultado!E71=0,0,Resultado!E71/Resultado!E70) -> 0.00% | J71: Despesas Totais | L71: =IF(Resultado!L70=0,0,(('2ºP'!J33)+Custos!P22+'2ºP'!J35)) -> 0 | N71: =IF(Resultado!L71=0,0,Resultado!L71/Resultado!L70) -> 0.00%
C72: Lucro Operacional | E72: =E70-E71 -> 0 | G72: =IF(Resultado!E72=0,0,Resultado!E72/Resultado!E70) -> 0.00% | J72: Lucro Operacional | L72: =Resultado!L70-Resultado!L71 -> 0 | N72: =IF(Resultado!L72=0,0,Resultado!L72/Resultado!L70) -> 0.00%
B74: IMPACTO COM A ADOÇÃO DO CARTÃO DE PAGAMENTO | I74: IMPACTO COM A ADOÇÃO DO CARTÃO DE PAGAMENTO
B76: O lucro da empresa passará de | E76: =IF(Resultado!E72=0,0,'2ºP'!$J$22) -> 0 | F76: reais | I76: O lucro da empresa passará de | L76: =IF(Resultado!L72=0,0,'2ºP'!$J$22) -> 0 | M76: reais
B77: para | C77: =Resultado!E72 -> 0 | D77: =IF(Resultado!F77>0,"com aumento de","com uma queda de") -> com uma queda de | F77: =Resultado!C77-Resultado!E76 -> 0 | I77: para | J77: =Resultado!L72 -> 0 | K77: =IF(Resultado!M77>0,"com aumento de","com uma queda de") -> com uma queda de | M77: =Resultado!J77-Resultado!L76 -> 0
B79: A despesa com cartão será de | E79: =Custos!P17 -> 0 | F79: c/aumento | I79: A despesa com cartão será de | L79: =Custos!P22 -> 0 | M79: c/aumento
B80: de | C80: =IF(Resultado!E72=0,0,((Resultado!E71/'2ºP'!J33)-1)) -> 0.00% | D80: nas despesas totais, representando | I80: de | J80: =IF(Resultado!L72=0,0,(Resultado!L71/'2ºP'!J33)-1) -> 0.00% | K80: nas despesas totais, representando
B81: =IF(Resultado!E72=0,0,Resultado!E79/Resultado!E70) -> 0.0% | C81: do faturamento bruto. | I81: =IF(Resultado!L72=0,0,Resultado!L79/Resultado!L70) -> 0.0% | J81: do faturamento bruto.
B83: A despesa de administração representará | F83: =Custos!P16 -> 0 | G83: reais | I83: A despesa de administração representará | M83: =Custos!P21 -> 0 | N83: reais
B84: ou | C84: =IF(Resultado!E72=0,0,Resultado!F83/Resultado!E70) -> 0.0% | D84: do faturamento bruto. | I84: ou | J84: =IF(Resultado!L72=0,0,Resultado!M83/Resultado!L70) -> 0.0% | K84: do faturamento bruto.
B86: A despesa fixa com cartão representará | F86: =Custos!O16 -> 0 | G86: reais | I86: A despesa fixa com cartão representará | M86: =Custos!O21 -> 0 | N86: reais
B87: ou | C87: =IF(Resultado!$E$72=0,0,Resultado!F86/Resultado!$E$70) -> 0.0% | D87: do faturamento bruto. | I87: ou | J87: =IF(Resultado!$L$72=0,0,Resultado!M86/Resultado!$L$70) -> 0.0% | K87: do faturamento bruto.
B89: O custo com antecip. de recebíveis será | F89: =Custos!M17 -> 0 | G89: reais | I89: O custo com antecip. de recebíveis será | M89: =Custos!M22 -> 0 | N89: reais
B90: ou | C90: =IF(Resultado!$E$72=0,0,Resultado!F89/Resultado!$E$70) -> 0.0% | D90: do faturamento bruto. | I90: ou | J90: =IF(Resultado!$L$72=0,0,Resultado!M89/Resultado!$L$70) -> 0.0% | K90: do faturamento bruto.
C92: Desp.Totais | D92: Desp.Cartão | E92: Desp.Adm | F92: Desp.Fixa | G92: Custo
B93: =Resultado!B42 -> MASTER CARD | C93: =Resultado!E46 -> 10,570.47 | D93: =Resultado!E54 -> 970.47 | E93: =Resultado!F58 -> 951.60 | F93: =Resultado!F61 -> 0 | G93: =Resultado!F64 -> 18.87
B94: =Resultado!I42 -> VISA | C94: =Resultado!L46 -> 10,452.72 | D94: =Resultado!L54 -> 852.72 | E94: =Resultado!M58 -> 813.80 | F94: =Resultado!M61 -> 0 | G94: =Resultado!M64 -> 38.92
B95: =Resultado!B67 -> ELO | C95: =Resultado!E71 -> 0 | D95: =Resultado!E79 -> 0 | E95: =Resultado!F83 -> 0 | F95: =Resultado!F86 -> 0 | G95: =Resultado!F89 -> 0
B96: =Resultado!I67 -> CIELO | C96: =Resultado!L71 -> 0 | D96: =Resultado!L79 -> 0 | E96: =Resultado!M83 -> 0 | F96: =Resultado!M86 -> 0 | G96: =Resultado!M89 -> 0
C97: =SUM(C93:C96) -> 21,023.19 | D97: =SUM(D93:D96) -> 1,823.19 | E97: =SUM(E93:E96) -> 1,765.40 | F97: =SUM(F93:F96) -> 0 | G97: =SUM(G93:G96) -> 57.79

Sheet Instruções

Sheet Custos (hidden)
B3: ='2ºP'!J27 -> 26,000.00 | C3: ='1ºP'!B23 -> 60.00% | D3: ='1ºP'!B25 -> 5.00% | E3: Taxa de Administração p/Cartão de Débito | F3: =IFERROR(B$3*C3*D3,0) -> 780.00 | H3: ='1ºP'!H12 -> Master Card | J3: Valor a ser antecipado | M3: ='1ºP'!I40 -> 1,170.00 | O3: =H3 -> Master Card
C4: ='1ºP'!B27 -> 3.00% | D4: ='1ºP'!B29 -> 2.00% | E4: Taxa de Adm. p/Cartão de Crédito á Vista (30 d) | F4: =IFERROR(B$3*C4*D4,0) -> 15.60 | J4: Taxa de antecipação | M4: ='1ºP'!B42 -> 5.00% | O4: Custos Adicionais
C5: ='1ºP'!B31 -> 6.00% | D5: ='1ºP'!B33 -> 5.00% | E5: Taxa de Adm. p/Cartão de Crédito Parcelado | F5: =IFERROR(B$3*C5*D5,0) -> 78.00 | J5: Período considerado (em dias) | M5: ='1ºP'!B44 -> 10 | O5: Fixos | P5: Variáveis (Adm.)
C6: ='1ºP'!B35 -> 5.00% | D6: ='1ºP'!B37 -> 6.00% | E6: Taxa de Adm. p/Modalidade Crediário (Até 48 v) | F6: =IFERROR(B$3*C6*D6,0) -> 78.00 | J6: Período considerado (em meses) | M6: =M5/30 -> 0.33 | O6: =IFERROR('1ºP'!B55+'1ºP'!E55+'1ºP'!H55,0) -> 0 | P6: =SUM(F3:F6) -> 951.60
C7: 100.00% | E7: Juros de Antecipação de Recebíveis | F7: =M7 -> 18.87 | J7: Valor atual | K7: =IFERROR(M3/(1+M4)^M6,0) -> 1,151.13 | L7: Custo Antecip. | M7: =IFERROR(M3-K7,0) -> 18.87 | O7: Totais | P7: =P6+O6+M7 -> 970.47
B8: ='2ºP'!J27 -> 26,000.00 | C8: ='1ºP'!L23 -> 60.00% | D8: ='1ºP'!L25 -> 4.00% | E8: Taxa de Administração p/Cartão de Débito | F8: =IFERROR(B$8*C8*D8,0) -> 624.00 | H8: ='1ºP'!L12 -> Visa | J8: Valor a ser antecipado | M8: ='1ºP'!S40 -> 1,170.00 | O8: =H8 -> Visa
C9: ='1ºP'!L27 -> 3.00% | D9: ='1ºP'!L29 -> 3.00% | E9: Taxa de Adm. p/Cartão de Crédito á Vista (30 d) | F9: =IFERROR(B$8*C9*D9,0) -> 23.40 | J9: Taxa de antecipação | M9: ='1ºP'!L42 -> 7.00% | O9: Custos Adicionais
C10: ='1ºP'!L31 -> 6.00% | D10: ='1ºP'!L33 -> 4.00% | E10: Taxa de Adm. p/Cartão de Crédito Parcelado | F10: =IFERROR(B$8*C10*D10,0) -> 62.40 | J10: Período considerado (em dias) | M10: ='1ºP'!L44 -> 15 | O10: Fixos | P10: Variáveis (Adm.)
C11: ='1ºP'!L35 -> 5.00% | D11: ='1ºP'!L37 -> 8.00% | E11: Taxa de Adm. p/Modalidade Crediário (Até 48 v) | F11: =IFERROR(B$8*C11*D11,0) -> 104.00 | J11: Período considerado (em meses) | M11: =M10/30 -> 0.50 | O11: =IFERROR('1ºP'!L55+'1ºP'!O55+'1ºP'!R55,0) -> 0 | P11: =SUM(F8:F11) -> 813.80
C12: 100.00% | E12: Juros de Antecipação de Recebíveis | F12: =M12 -> 38.92 | J12: Valor atual | K12: =IFERROR(M8/(1+M9)^M11,0) -> 1,131.08 | L12: Custo Antecip. | M12: =IFERROR(M8-K12,0) -> 38.92 | O12: Totais | P12: =P11+O11+M12 -> 852.72
B13: ='2ºP'!J27 -> 26,000.00 | C13: ='1ºP'!B63 ->  | D13: ='1ºP'!B65 -> 0.00% | E13: Taxa de Administração p/Cartão de Débito | F13: =IFERROR(B$13*C13*D13,0) -> 0 | H13: ='1ºP'!O12 -> Elo | J13: Valor a ser antecipado | M13: ='1ºP'!I75 ->  | O13: =H13 -> Elo
C14: ='1ºP'!B67 ->  | D14: ='1ºP'!B69 -> 0.00% | E14: Taxa de Adm. p/Cartão de Crédito á Vista (30 d) | F14: =IFERROR(B$13*C14*D14,0) -> 0 | J14: Taxa de antecipação | M14: ='1ºP'!B82 -> 0.00% | O14: Custos Adicionais
C15: ='1ºP'!B71 ->  | D15: ='1ºP'!B73 -> 0.00% | E15: Taxa de Adm. p/Cartão de Crédito Parcelado | F15: =IFERROR(B$13*C15*D15,0) -> 0 | J15: Período considerado (em dias) | M15: ='1ºP'!B84 -> 0 | O15: Fixos | P15: Variáveis (Adm.)
C16: ='1ºP'!B75 ->  | D16: ='1ºP'!B77 -> 0.00% | E16: Taxa de Adm. p/Modalidade Crediário (Até 48 v) | F16: =IFERROR(B$13*C16*D16,0) -> 0 | J16: Período considerado (em meses) | M16: =M15/30 -> 0.00 | O16: =IFERROR('1ºP'!B95+'1ºP'!E95+'1ºP'!H95,0) -> 0 | P16: =SUM(F13:F16) -> 0
C17: 100.00% | E17: Juros de Antecipação de Recebíveis | F17: =M17 -> 0 | J17: Valor atual | K17: =IFERROR(M13/(1+M14)^M16,0) -> 0 | L17: Custo Antecip. | M17: =IFERROR(M13-K17,0) -> 0 | O17: Totais | P17: =P16+O16+M17 -> 0
B18: ='2ºP'!J27 -> 26,000.00 | C18: ='1ºP'!L63 ->  | D18: ='1ºP'!L65 -> 0.00% | E18: Taxa de Administração p/Cartão de Débito | F18: =IFERROR(B$18*C18*D18,0) -> 0 | H18: ='1ºP'!R12 -> Cielo | J18: Valor a ser antecipado | M18: ='1ºP'!S75 ->  | O18: =H18 -> Cielo
C19: ='1ºP'!L67 ->  | D19: ='1ºP'!L69 -> 0.00% | E19: Taxa de Adm. p/Cartão de Crédito á Vista (30 d) | F19: =IFERROR(B$18*C19*D19,0) -> 0 | J19: Taxa de antecipação | M19: ='1ºP'!L82 -> 0.00% | O19: Custos Adicionais
C20: ='1ºP'!L71 ->  | D20: ='1ºP'!L73 -> 0.00% | E20: Taxa de Adm. p/Cartão de Crédito Parcelado | F20: =IFERROR(B$18*C20*D20,0) -> 0 | J20: Período considerado (em dias) | M20: ='1ºP'!L84 -> 0 | O20: Fixos | P20: Variáveis
C21: ='1ºP'!L75 ->  | D21: ='1ºP'!L77 -> 0.00% | E21: Taxa de Adm. p/Modalidade Crediário (Até 48 v) | F21: =IFERROR(B$18*C21*D21,0) -> 0 | J21: Período considerado (em meses) | M21: =M20/30 -> 0.00 | O21: =IFERROR('1ºP'!L95+'1ºP'!O95+'1ºP'!R95,0) -> 0 | P21: =SUM(F18:F21) -> 0
C22: 100.00% | E22: Juros de Antecipação de Recebíveis | F22: =M22 -> 0 | J22: Valor atual | K22: =IFERROR(M18/(1+M19)^M21,0) -> 0 | L22: Custo Antecip. | M22: =IFERROR(M18-K22,0) -> 0 | O22: Totais | P22: =P21+O21+M22 -> 0
